bitfinex/quotes_BTCUSD_20250508
["timestamp","ask_amount","ask_price","bid_price","bid_amount"]
[1746702128814,0.01002667,99734.0,99725.0,0.002]
[1746702129012,0.22686383,99733.0,99730.0,0.34]
[1746702129245,0.05817589,99732.0,99731.0,3.857993]
[1746702129416,0.05117589,99732.0,99731.0,3.857993]
[1746702129835,0.05117589,99732.0,99731.0,1.081524]
[1746702130356,0.05117589,99732.0,99731.0,0.698226]
[1746702130539,0.05417589,99732.0,99731.0,0.698226]
[1746702131882,0.04487589,99732.0,99731.0,0.698226]
[1746702132623,0.06097589,99732.0,99731.0,0.698226]
[1746702133595,0.07657589,99732.0,99731.0,0.698226]
[1746702134081,0.06097589,99732.0,99731.0,0.498543]
[1746702134233,0.06097589,99732.0,99731.0,0.158543]
[1746702134438,0.06097589,99732.0,99730.0,1.15880843]
[1746702134650,0.04174147,99731.0,99730.0,0.20054043]
[1746702135105,0.04174147,99731.0,99730.0,2.79738543]
[1746702135640,0.04174147,99731.0,99730.0,0.20054043]
[1746702136054,0.04274147,99731.0,99730.0,4.36622443]
[1746702136493,0.03674147,99731.0,99730.0,4.36622443]
[1746702138183,0.03574147,99731.0,99730.0,4.36622443]
[1746702138648,0.03674147,99731.0,99730.0,4.36622443]
[1746702138787,0.03574147,99731.0,99730.0,4.36622443]
[1746702138989,0.03674147,99731.0,99730.0,4.36622443]
[1746702142742,0.03574147,99731.0,99730.0,4.36622443]
[1746702142941,0.03474147,99731.0,99730.0,4.36622443]
[1746702143156,0.21053947,99744.0,99740.0,0.21054586]
[1746702143369,0.03799853,99743.0,99740.0,0.21054586]
[1746702143573,0.03799853,99742.0,99740.0,0.21054586]
[1746702143817,0.21053947,99744.0,99741.0,0.20051807]
[1746702144155,0.0396198,99743.0,99741.0,0.20051807]
[1746702144676,0.04964556,99743.0,99740.0,0.003]
[1746702144873,0.03715483,99742.0,99740.0,0.003]
[1746702145129,0.20051934,99741.0,99740.0,0.003]
[1746702145340,0.23767417,99741.0,99740.0,0.003]
[1746702145514,0.24770013,99741.0,99738.0,0.01002626]
[1746702145721,0.03715483,99740.0,99739.0,0.20052336]
[1746702145936,0.20051934,99741.0,99740.0,0.006]
[1746702146139,0.20050051,99751.0,99747.0,0.01002536]
[1746702146363,0.36104,99779.0,99742.0,0.01002586]
[1746702146364,0.20050538,99748.0,99745.0,0.34]
[1746702146563,0.03774977,99747.0,99745.0,0.34]
[1746702146793,0.20050929,99746.0,99745.0,0.34]
[1746702146953,0.23636217,99746.0,99745.0,0.34]
[1746702147323,0.23636217,99746.0,99742.0,0.34]
[1746702147523,0.04587844,99745.0,99744.0,0.34]
[1746702148222,0.24638974,99745.0,99744.0,0.34]
[1746702148644,0.24638974,99745.0,99742.0,0.35002586]
[1746702148856,0.03642706,99744.0,99743.0,7.41596]
[1746702149060,0.23694037,99744.0,99743.0,4.068723]
[1746702149257,0.23694037,99744.0,99743.0,3.938523]
[1746702149575,0.23694037,99744.0,99743.0,3.869295]
[1746702149772,0.23694037,99744.0,99743.0,0.34]
[1746702150087,0.23894037,99744.0,99743.0,0.34]
[1746702150493,0.23894037,99744.0,99723.0,0.01002777]
[1746702150494,0.20054325,99730.0,99723.0,0.01002777]
[1746702150694,0.02853818,99729.0,99726.0,0.210575]
[1746702150879,0.01002697,99731.0,99730.0,0.34]
[1746702151073,0.046939,99731.0,99730.0,0.713254]
[1746702151273,0.046939,99731.0,99730.0,0.34]
[1746702152242,0.20054146,99730.0,99728.0,5.021e-05]
[1746702152445,0.23491858,99730.0,99728.0,5.021e-05]
[1746702152632,0.03437712,99729.0,99728.0,0.34005021]
[1746702152779,0.03440382,99729.0,99728.0,0.34005021]
[1746702152976,0.03440382,99729.0,99728.0,0.54059487]
[1746702153200,0.03440382,99730.0,99728.0,0.54059487]
[1746702153445,0.03540382,99730.0,99728.0,0.54059487]
[1746702153616,0.03440382,99730.0,99728.0,0.54059487]
[1746702155028,0.001,99729.0,99558.0,50.0]
[1746702155242,0.03579455,99729.0,99727.0,0.21057486]
[1746702155714,0.03479455,99729.0,99727.0,0.21057486]
[1746702156868,0.0177,99729.0,99728.0,0.21057211]
[1746702157066,0.05107101,99729.0,99728.0,0.21057211]
[1746702157832,0.06017101,99729.0,99728.0,0.21057211]
[1746702158030,0.05917101,99729.0,99728.0,0.21057211]
[1746702158235,0.0158,99728.0,99727.0,0.34]
[1746702158447,0.05099955,99728.0,99727.0,3.273148]
[1746702158631,0.05099955,99728.0,99727.0,3.208926]
[1746702158870,0.05099955,99728.0,99727.0,3.162767]
[1746702159372,0.05099955,99728.0,99727.0,3.1146]
[1746702159683,0.05299955,99728.0,99727.0,3.1146]
[1746702159902,0.05299955,99728.0,99722.0,0.00013299]
[1746702160105,0.21575553,99723.0,99722.0,0.00013299]
[1746702160239,0.04893879,99723.0,99722.0,0.00013299]
[1746702160591,0.03393879,99723.0,99722.0,0.00013299]
[1746702160819,0.05043879,99723.0,99722.0,0.00013299]
[1746702161393,0.06703879,99723.0,99722.0,0.00513299]
[1746702161596,0.06703879,99723.0,99722.0,0.00013299]
[1746702161966,0.06803879,99723.0,99722.0,0.00613299]
[1746702162375,0.06803879,99723.0,99722.0,0.00013299]
[1746702162776,0.14837903,99723.0,99722.0,0.00013299]
[1746702163021,0.14937903,99723.0,99722.0,0.00013299]
[1746702163544,0.06903879,99723.0,99722.0,0.00013299]
[1746702164277,0.06803879,99723.0,99722.0,0.00013299]
[1746702164548,0.06903879,99723.0,99722.0,0.00413299]
[1746702164763,0.06803879,99723.0,99722.0,0.00413299]
[1746702165094,0.06803879,99723.0,99722.0,0.00713299]
[1746702165552,0.02793879,99723.0,99722.0,0.00713299]
[1746702165860,0.05913879,99723.0,99722.0,0.00713299]
[1746702167859,0.25969432,99723.0,99722.0,0.00713299]
[1746702169298,0.25869432,99723.0,99722.0,0.00013299]
[1746702169735,0.26069432,99723.0,99722.0,0.01513299]
[1746702170994,0.25969432,99723.0,99722.0,0.00813299]
[1746702171194,0.26069432,99723.0,99722.0,0.01413299]
[1746702171521,0.25969432,99723.0,99722.0,0.00613299]
[1746702171698,0.26069432,99723.0,99722.0,0.01413299]
[1746702173037,0.26562538,99723.0,99722.0,0.01413299]
[1746702173424,0.26557524,99723.0,99722.0,0.01413299]
[1746702177411,0.20059336,99705.0,99703.0,0.00200574]
[1746702177621,0.20059152,99706.0,99701.0,0.0004553]
[1746702177622,0.20059591,99703.0,99701.0,0.0004553]
[1746702177823,0.02893337,99702.0,99701.0,0.0004553]
[1746702179094,0.02893337,99702.0,99701.0,5.6210873]
[1746702179295,0.02893337,99702.0,99701.0,5.9630873]
[1746702180074,0.02193337,99702.0,99701.0,5.9630873]
[1746702180349,0.01002938,99707.0,99702.0,0.34]
[1746702180499,0.01002938,99707.0,99703.0,10.39]
[1746702180500,0.20059375,99704.0,99703.0,10.39]
[1746702180700,0.2314735,99704.0,99703.0,10.39]
[1746702181418,0.2314735,99704.0,99703.0,5.253897]
[1746702181783,0.2314735,99704.0,99703.0,5.254897]
[1746702181784,0.2384735,99704.0,99703.0,5.254897]
[1746702182530,0.2384735,99704.0,99703.0,0.494559]
[1746702182765,0.2534735,99704.0,99703.0,0.460434]
[1746702183118,0.2384735,99704.0,99703.0,0.460434]
[1746702183753,0.2384735,99704.0,99703.0,0.341]
[1746702183956,0.2384735,99704.0,99703.0,10.391]
[1746702185464,0.2314735,99704.0,99703.0,10.39]
[1746702185661,0.2314735,99704.0,99703.0,9.350594]
[1746702185872,0.2394735,99704.0,99703.0,9.351594]
[1746702186036,0.2394735,99704.0,99703.0,9.143805]
[1746702187072,0.2354735,99704.0,99703.0,9.142805]
[1746702187270,0.2284735,99704.0,99703.0,9.142805]
[1746702187524,0.2314735,99704.0,99703.0,9.143805]
[1746702187652,0.2274735,99704.0,99703.0,9.143805]
[1746702187866,0.2314735,99704.0,99703.0,9.144805]
[1746702190422,0.03787975,99704.0,99703.0,9.144805]
[1746702191027,0.03787975,99704.0,99703.0,9.26137192]
[1746702191231,0.03787975,99704.0,99703.0,9.27667192]
[1746702191789,0.03087975,99704.0,99703.0,9.27467192]
[1746702192027,0.08034024,99716.0,99715.0,0.34]
[1746702192203,0.10825346,99716.0,99713.0,0.01002878]
[1746702192408,0.02791322,99715.0,99714.0,9.896958]
[1746702192633,0.02791322,99715.0,99714.0,0.34]
[1746702192811,0.02791322,99715.0,99714.0,10.55413676]
[1746702193028,0.02791322,99715.0,99714.0,0.54057276]
[1746702193231,0.02791322,99715.0,99714.0,10.39]
[1746702193433,0.02791322,99715.0,99714.0,9.198414]
[1746702193640,0.02791322,99715.0,99714.0,8.28823]
[1746702194312,0.02091322,99715.0,99714.0,8.28823]
[1746702194670,0.02491322,99715.0,99714.0,8.28923]
[1746702197349,0.02491322,99715.0,99714.0,7.94923]
[1746702199124,0.02491322,99715.0,99714.0,8.34923]
[1746702199560,0.02491322,99715.0,99714.0,8.36543]
[1746702200121,0.02491322,99715.0,99714.0,8.34923]
[1746702201540,0.0293953,99715.0,99714.0,8.34923]
[1746702201977,0.0293953,99715.0,99714.0,8.83675817]
[1746702202902,0.0273953,99715.0,99714.0,8.83575817]
[1746702203110,0.0283953,99715.0,99714.0,8.85129902]
[1746702203751,0.0273953,99715.0,99714.0,0.90206902]
[1746702203964,0.0253953,99715.0,99714.0,10.95306902]
[1746702204377,0.0273953,99715.0,99714.0,10.95206902]
[1746702204958,0.0273953,99715.0,99714.0,10.93920777]
[1746702205787,0.0283953,99715.0,99714.0,10.94220777]
[1746702208600,0.0213953,99715.0,99714.0,10.94220777]
[1746702208734,0.0213953,99715.0,99714.0,11.36050777]
[1746702212877,0.0213953,99715.0,99714.0,11.56108141]
[1746702214391,0.0213953,99715.0,99714.0,11.59118741]
[1746702214596,0.0213953,99715.0,99714.0,1.54118741]
[1746702214801,0.0213953,99715.0,99714.0,11.59118741]
[1746702215637,0.02417713,99715.0,99714.0,11.59118741]
[1746702217956,0.02417713,99715.0,99714.0,11.19118741]
[1746702218388,0.02417713,99715.0,99714.0,11.22110703]
[1746702218599,0.001,99728.0,99727.0,0.55508834]
[1746702218801,0.002,99745.0,99727.0,0.55508834]
[1746702218802,0.002,99745.0,99744.0,0.54051331]
[1746702219040,0.01982265,99745.0,99744.0,10.99051331]
[1746702219759,0.01374379,99745.0,99744.0,11.09118023]
[1746702220233,0.01674379,99745.0,99744.0,11.08705723]
[1746702220843,0.01674379,99745.0,99744.0,11.09457181]
[1746702221848,0.01374379,99745.0,99744.0,11.10949591]
[1746702222206,0.01874379,99745.0,99744.0,11.10949591]
[1746702222619,0.00874379,99745.0,99744.0,11.10949591]
[1746702222895,0.04483231,99745.0,99744.0,8.48891289]
[1746702223095,0.04483231,99745.0,99744.0,7.423303]
[1746702223295,0.04483231,99745.0,99744.0,1.929097]
[1746702223591,0.04483231,99745.0,99744.0,0.609597]
[1746702223816,0.04483231,99745.0,99744.0,1.15011031]
[1746702224181,0.04483231,99745.0,99744.0,1.14911031]
[1746702224376,0.04483231,99745.0,99744.0,0.948597]
[1746702224895,0.04283231,99745.0,99744.0,0.947597]
[1746702225095,0.04583231,99745.0,99744.0,0.947597]
[1746702225303,0.04583231,99745.0,99744.0,0.34]
[1746702225476,0.04983231,99745.0,99744.0,0.341]
[1746702225672,0.05283231,99745.0,99744.0,8.298463]
[1746702225878,0.04883231,99745.0,99744.0,8.297463]
[1746702226075,0.04883231,99745.0,99744.0,3.185075]
[1746702226273,0.05283231,99745.0,99744.0,3.186075]
[1746702226537,0.05283231,99745.0,99744.0,1.598194]
[1746702226734,0.05283231,99745.0,99744.0,0.809522]
[1746702226878,0.25334361,99745.0,99744.0,0.593817]
[1746702227079,0.25334361,99745.0,99744.0,0.545659]
[1746702227306,0.25334361,99745.0,99744.0,0.341]
[1746702227598,0.25334361,99745.0,99744.0,0.001]
[1746702228430,0.27205343,99745.0,99744.0,0.001]
[1746702228635,0.20051934,99741.0,99740.0,0.05]
[1746702228848,0.24143988,99741.0,99740.0,0.05]
[1746702230005,0.24143988,99741.0,99740.0,0.051]
[1746702230006,0.04592054,99741.0,99740.0,0.051]
[1746702230154,0.04292054,99741.0,99740.0,0.051]
[1746702230399,0.04292054,99741.0,99740.0,0.05]
[1746702230400,0.04092054,99741.0,99740.0,0.05]
[1746702230581,0.04692054,99741.0,99740.0,0.051]
[1746702231447,0.06564007,99741.0,99740.0,0.051]
[1746702233696,0.0319,99738.0,99735.0,0.09690474]
[1746702233903,0.01006413,99737.0,99736.0,2.772175]
[1746702234177,0.21055089,99739.0,99737.0,2.740067]
[1746702234354,0.01006413,99738.0,99737.0,0.34]
[1746702234556,0.04196413,99738.0,99737.0,2.740067]
[1746702235292,0.04496413,99738.0,99737.0,2.740067]
[1746702235731,0.04196413,99738.0,99737.0,2.740067]
[1746702236145,0.04496413,99738.0,99737.0,0.001]
[1746702236351,0.04796413,99738.0,99737.0,0.001]
[1746702236560,0.04796413,99738.0,99737.0,3.452457]
[1746702237339,0.04761218,99738.0,99737.0,3.452457]
[1746702237787,0.24813755,99738.0,99737.0,3.452457]
[1746702238357,0.24913755,99738.0,99737.0,3.452457]
[1746702238556,0.24913755,99738.0,99737.0,3.42637]
[1746702239063,0.24913755,99738.0,99737.0,2.958799]
[1746702239284,0.24913755,99738.0,99737.0,2.655781]
[1746702243595,0.04861218,99738.0,99737.0,2.655781]
[1746702243810,0.04861218,99738.0,99737.0,2.85630838]
[1746702244015,0.04861218,99738.0,99737.0,7.90630838]
[1746702244281,0.01671218,99738.0,99737.0,7.90630838]
[1746702245122,0.01671218,99738.0,99737.0,8.30630838]
[1746702245475,0.01371218,99738.0,99737.0,8.30530838]
[1746702245660,0.01171218,99738.0,99737.0,8.30630838]
[1746702246015,0.01171218,99738.0,99737.0,8.30730838]
[1746702246758,0.01171218,99738.0,99737.0,5.99252738]
[1746702247069,0.01171218,99738.0,99737.0,6.1238943]
[1746702247856,0.01171218,99738.0,99737.0,6.1083943]
[1746702248610,0.01071218,99738.0,99737.0,6.1063943]
[1746702248756,0.01171218,99738.0,99737.0,6.1073943]
[1746702248955,0.01171218,99738.0,99737.0,6.1093943]
[1746702249861,0.00998702,99738.0,99737.0,6.1093943]
[1746702250469,0.00998702,99738.0,99737.0,6.0941943]
[1746702250671,0.00753136,99738.0,99737.0,6.0941943]
[1746702251288,0.00753136,99738.0,99737.0,1.0441943]
[1746702251489,0.00753136,99738.0,99737.0,6.0941943]
[1746702256946,0.00563631,99738.0,99737.0,6.0941943]
[1746702257161,0.02213631,99738.0,99737.0,5.59352738]
[1746702257682,0.0165,99738.0,99737.0,5.59352738]
[1746702258646,0.0327,99738.0,99737.0,5.59352738]
[1746702259593,0.0327,99738.0,99737.0,3.29212738]
[1746702259786,0.0327,99738.0,99737.0,2.45832738]
[1746702259987,0.0327,99738.0,99737.0,2.34082738]
[1746702260191,0.0327,99738.0,99737.0,0.84312738]
[1746702260462,0.0327,99738.0,99737.0,0.84212738]
[1746702260666,0.23322537,99738.0,99737.0,0.3016]
[1746702260948,0.0309,99737.0,99736.0,0.41]
[1746702262215,0.0309,99737.0,99736.0,0.61052939]
[1746702263046,0.0309,99737.0,99736.0,0.07]
[1746702263247,0.0349,99737.0,99736.0,0.411]
[1746702263686,0.0349,99737.0,99736.0,0.61152939]
[1746702263838,0.0349,99737.0,99736.0,0.411]
[1746702264037,0.0279,99737.0,99736.0,0.411]
[1746702264621,0.0279,99737.0,99736.0,0.071]
[1746702265405,0.22842738,99737.0,99736.0,0.071]
[1746702265597,0.0279,99737.0,99736.0,0.071]
[1746702265820,0.22842738,99737.0,99736.0,0.071]
[1746702266559,0.24714471,99737.0,99736.0,0.071]
[1746702266761,0.24714471,99737.0,99736.0,0.001]
[1746702269707,0.04661733,99737.0,99736.0,0.001]
[1746702271104,0.03961733,99737.0,99736.0,0.001]
[1746702272986,0.24014471,99737.0,99736.0,0.001]
[1746702273815,0.22142738,99737.0,99736.0,0.001]
[1746702276598,0.0209,99737.0,99736.0,0.001]
[1746702278170,0.21442738,99737.0,99736.0,0.001]
[1746702281086,0.22962738,99737.0,99736.0,0.001]
[1746702281801,0.0139,99737.0,99736.0,0.54152939]
[1746702282032,0.004,99737.0,99736.0,0.54152939]
[1746702282510,0.004,99737.0,99736.0,5.62362939]
[1746702282920,0.004,99737.0,99736.0,5.62262939]
[1746702282921,0.002,99737.0,99736.0,5.62262939]
[1746702283113,0.001,99750.0,99749.0,0.54050326]
[1746702283655,0.001,99750.0,99749.0,3.95930326]
[1746702284511,0.001,99750.0,99749.0,3.7588]
[1746702285140,0.001,99750.0,99749.0,0.34]
[1746702285367,0.001,99750.0,99749.0,5.39]
[1746702285767,0.002,99750.0,99749.0,5.39]
[1746702286186,0.004,99750.0,99749.0,5.391]
[1746702287633,0.036,99750.0,99749.0,4.8459]
[1746702288047,0.036,99750.0,99749.0,4.8286]
[1746702288406,0.036,99750.0,99749.0,4.2828]
[1746702289084,0.036,99750.0,99749.0,4.2621]
[1746702289410,0.036,99750.0,99749.0,4.1947]
[1746702290317,0.21700716,99750.0,99749.0,3.8547]
[1746702290524,0.21700716,99750.0,99749.0,0.001]
[1746702291252,0.2357432,99750.0,99749.0,0.001]
[1746702291971,0.24176924,99750.0,99749.0,0.001]
[1746702292170,0.2511373,99750.0,99749.0,0.001]
[1746702292375,0.2501373,99750.0,99749.0,0.007]
[1746702292984,0.01002636,99737.0,99734.0,0.06145518]
[1746702293216,0.20052939,99736.0,99735.0,2.0191]
[1746702293464,0.20052939,99736.0,99735.0,1.9099]
[1746702293814,0.20052939,99736.0,99735.0,1.8302]
[1746702294016,0.20052939,99736.0,99735.0,1.3727]
[1746702295257,0.19352939,99736.0,99735.0,1.3727]
[1746702295957,0.19452939,99736.0,99735.0,0.341]
[1746702296187,0.21062939,99736.0,99735.0,1.0973]
[1746702296612,0.20962939,99736.0,99735.0,1.0963]
[1746702296788,0.21062939,99736.0,99735.0,1.0963]
[1746702296984,0.22822939,99736.0,99735.0,1.0973]
[1746702297191,0.22822939,99736.0,99735.0,1.0872]
[1746702297419,0.22822939,99736.0,99735.0,1.0692]
[1746702297623,0.22822939,99736.0,99735.0,1.0516]
[1746702298287,0.22722939,99736.0,99735.0,1.0516]
[1746702298493,0.22922939,99736.0,99735.0,1.0516]
[1746702298733,0.22722939,99736.0,99735.0,1.0506]
[1746702298890,0.22922939,99736.0,99735.0,1.0516]
[1746702299081,0.22922939,99736.0,99735.0,0.9046]
[1746702299294,0.22922939,99736.0,99735.0,0.8246]
[1746702299845,0.22922939,99736.0,99735.0,0.557]
[1746702300458,0.22922939,99736.0,99735.0,0.4419]
[1746702301230,0.24796421,99736.0,99735.0,0.4419]
[1746702301620,0.24796421,99736.0,99735.0,0.5262]
[1746702302387,0.24796421,99736.0,99735.0,0.341]
[1746702302388,0.32130445,99736.0,99735.0,0.341]
[1746702302801,0.33066981,99736.0,99735.0,0.341]
[1746702302978,0.33769367,99736.0,99735.0,0.341]
[1746702303648,0.43836059,99736.0,99735.0,0.341]
[1746702304571,0.43836059,99736.0,99735.0,0.001]
[1746702305360,0.2005495,99726.0,99725.0,0.06348384]
[1746702305565,0.25078432,99726.0,99725.0,0.06348384]
[1746702305988,0.35145124,99726.0,99725.0,0.002]
[1746702306565,0.3584751,99726.0,99725.0,0.002]
[1746702306762,0.36782789,99726.0,99725.0,0.002]
[1746702306879,0.36882789,99726.0,99725.0,0.005]
[1746702307083,0.36982789,99726.0,99725.0,0.007]
[1746702308343,0.36882789,99726.0,99725.0,0.004]
[1746702308592,0.36782789,99726.0,99725.0,0.002]
[1746702308773,0.36280403,99726.0,99725.0,0.009]
[1746702309202,0.36080403,99726.0,99725.0,0.002]
[1746702309405,0.36180403,99726.0,99725.0,0.009]
[1746702309635,0.36280403,99726.0,99725.0,0.009]
[1746702310194,0.34406921,99726.0,99725.0,0.009]
[1746702310546,0.33471642,99726.0,99725.0,0.009]
[1746702310733,0.35340655,99726.0,99725.0,0.009]
[1746702311270,0.34981164,99726.0,99725.0,0.009]
[1746702311471,0.34826506,99726.0,99725.0,0.009]
[1746702312909,0.21609814,99726.0,99725.0,0.009]
[1746702313158,0.23623963,99726.0,99725.0,0.009]
[1746702313958,0.2175495,99726.0,99725.0,0.009]
[1746702314296,0.2025495,99726.0,99725.0,0.009]
[1746702314433,0.002,99726.0,99725.0,0.009]
[1746702314795,0.002,99726.0,99720.0,0.01002807]
[1746702314796,0.2025495,99726.0,99720.0,0.01002807]
[1746702314938,0.21257697,99726.0,99723.0,0.01002777]
[1746702315140,0.21257697,99726.0,99722.0,0.34]
[1746702315350,0.21057966,99725.0,99722.0,0.34]
[1746702315665,0.20055504,99724.0,99723.0,5.39]
[1746702315851,0.20055504,99724.0,99723.0,0.34]
[1746702316501,0.002,99726.0,99724.0,0.54055245]
[1746702316829,0.002,99726.0,99725.0,2.3933]
[1746702316974,0.002,99726.0,99725.0,0.5398]
[1746702317801,0.001,99726.0,99725.0,0.4615]
[1746702317977,0.001,99726.0,99725.0,0.34]
[1746702318379,0.20054757,99727.0,99726.0,0.34]
[1746702319511,0.20056157,99720.0,99719.0,0.00011409]
[1746702319707,0.20056157,99720.0,99719.0,5.39011409]
[1746702319913,0.20055975,99721.0,99720.0,0.34]
[1746702320911,0.20055975,99721.0,99719.0,0.00011409]
[1746702321567,0.006,99720.0,99719.0,0.00111409]
[1746702321768,0.012,99720.0,99719.0,3.51811409]
[1746702321906,0.012,99720.0,99719.0,3.13531409]
[1746702322316,0.0271,99720.0,99719.0,0.34211409]
[1746702322515,0.0314,99720.0,99719.0,0.34111409]
[1746702322717,0.0314,99720.0,99719.0,0.34211409]
[1746702322933,0.0374,99720.0,99719.0,0.34311409]
[1746702323363,0.05610475,99720.0,99719.0,0.34311409]
[1746702323535,0.05610475,99720.0,99719.0,0.00311409]
[1746702324135,0.05610475,99720.0,99719.0,0.00211409]
[1746702324136,0.22575523,99720.0,99719.0,0.00211409]
[1746702324487,0.04910475,99720.0,99719.0,0.00211409]
[1746702324797,0.05210475,99720.0,99719.0,0.00311409]
[1746702325017,0.02770475,99720.0,99719.0,0.00311409]
[1746702325306,0.01870475,99720.0,99719.0,0.00011409]
[1746702325450,0.01970475,99720.0,99719.0,0.00511409]
[1746702325642,0.02070475,99720.0,99719.0,0.00511409]
[1746702326046,0.01970475,99720.0,99719.0,0.00011409]
[1746702326478,0.01870475,99720.0,99719.0,0.00011409]
[1746702326675,0.01870475,99720.0,99719.0,0.00111409]
[1746702326917,0.02770475,99720.0,99719.0,0.00111409]
[1746702327551,0.02870475,99720.0,99719.0,0.00111409]
[1746702328039,0.02770475,99720.0,99719.0,0.00111409]
[1746702328246,0.02970475,99720.0,99719.0,0.00111409]
[1746702329914,0.23026632,99720.0,99719.0,0.00111409]
[1746702331533,0.23262729,99720.0,99719.0,0.00111409]
[1746702332444,0.22326632,99720.0,99719.0,0.00111409]
[1746702336665,0.02270475,99720.0,99719.0,5.59167767]
[1746702336869,0.02270475,99720.0,99719.0,5.39111409]
[1746702337036,0.02270475,99720.0,99719.0,5.41989746]
[1746702337236,0.22326632,99720.0,99719.0,5.40409746]
[1746702337474,0.02270475,99720.0,99719.0,5.60466104]
[1746702337687,0.02070475,99720.0,99719.0,5.40409746]
[1746702337922,0.22326632,99720.0,99719.0,5.40409746]
[1746702338386,0.20256157,99720.0,99719.0,5.40309746]
[1746702338627,0.20056157,99720.0,99719.0,5.40409746]
[1746702338855,0.20056157,99720.0,99719.0,5.40309746]
[1746702339273,0.20456157,99720.0,99719.0,5.40409746]
[1746702339889,0.20256157,99720.0,99719.0,5.40409746]
[1746702340113,0.009,99720.0,99719.0,4.69986104]
[1746702340334,0.011,99720.0,99719.0,4.71696104]
[1746702341510,0.011,99720.0,99719.0,4.70086104]
[1746702342228,0.011,99720.0,99719.0,4.71656104]
[1746702344549,0.011,99720.0,99719.0,5.62136104]
[1746702344890,0.009,99720.0,99719.0,5.62036104]
[1746702345094,0.01002777,99723.0,99720.0,0.54056148]
[1746702345370,0.01002777,99723.0,99722.0,0.34]
[1746702345565,0.01002777,99723.0,99722.0,5.39]
[1746702345762,0.21058447,99723.0,99722.0,5.40296071]
[1746702346377,0.21558447,99723.0,99722.0,5.40296071]
[1746702347206,0.2075567,99723.0,99722.0,5.40396071]
[1746702347376,0.007,99723.0,99722.0,5.40496071]
[1746702347590,0.21255553,99723.0,99722.0,5.40496071]
[1746702347796,0.2225833,99723.0,99722.0,5.40496071]
[1746702348493,0.02202777,99723.0,99722.0,5.40496071]
[1746702348696,0.012,99723.0,99722.0,5.62101825]
[1746702348893,0.012,99723.0,99722.0,5.63661825]
[1746702352051,0.012,99723.0,99722.0,5.62101825]
[1746702352261,0.002,99723.0,99722.0,5.62001825]
[1746702352443,0.01002707,99730.0,99727.0,0.21057286]
[1746702352832,0.01002707,99730.0,99728.0,0.01296925]
[1746702353291,0.21056868,99730.0,99728.0,0.01296925]
[1746702353624,0.21656868,99730.0,99727.0,0.002]
[1746702353826,0.21656868,99730.0,99729.0,0.01296925]
[1746702354038,0.21256868,99730.0,99728.0,0.34]
[1746702354291,0.21056868,99730.0,99729.0,0.01297221]
[1746702354691,0.22556868,99730.0,99729.0,0.01297221]
[1746702355105,0.2005495,99726.0,99725.0,0.34]
[1746702355416,0.2158495,99726.0,99725.0,1.174]
[1746702355566,0.2005495,99726.0,99725.0,3.7786]
[1746702355800,0.20054772,99727.0,99725.0,4.5771]
[1746702356154,0.20054772,99727.0,99726.0,4.5444]
[1746702356292,0.20054772,99727.0,99726.0,4.58986036]
[1746702356697,0.20054772,99727.0,99726.0,3.74536036]
[1746702356886,0.21057374,99728.0,99727.0,0.34]
[1746702357080,0.21057374,99728.0,99727.0,5.02146628]
[1746702357631,0.21057374,99728.0,99727.0,4.02326628]
[1746702357835,0.21057374,99728.0,99727.0,3.21046628]
[1746702358963,0.21557374,99728.0,99727.0,3.21146628]
[1746702359501,0.21657374,99728.0,99727.0,3.21246628]
[1746702359704,0.21657374,99728.0,99727.0,3.14076628]
[1746702360350,0.21657374,99728.0,99727.0,1.94816628]
[1746702361657,0.21657374,99728.0,99727.0,1.75606628]
[1746702361862,0.23207374,99728.0,99727.0,1.19546628]
[1746702362040,0.24817374,99728.0,99727.0,1.19546628]
[1746702362427,0.24817374,99728.0,99727.0,0.45576628]
[1746702363636,0.23207374,99728.0,99727.0,0.45576628]
[1746702365814,0.23307374,99728.0,99727.0,0.35496628]
[1746702366024,0.23307374,99728.0,99727.0,0.01496628]
[1746702366172,0.21757374,99728.0,99727.0,0.35496628]
[1746702366363,0.21757374,99728.0,99727.0,5.40496628]
[1746702366568,0.21757275,99728.0,99727.0,5.40496628]
[1746702367574,0.21757275,99728.0,99727.0,5.22506628]
[1746702367725,0.21757275,99728.0,99727.0,4.86926628]
[1746702367941,0.01702727,99728.0,99727.0,4.20746628]
[1746702368544,0.21757275,99728.0,99727.0,4.20746628]
[1746702369441,0.21757275,99728.0,99727.0,1.13506628]
[1746702370352,0.23367275,99728.0,99727.0,1.13506628]
[1746702370951,0.21757275,99728.0,99727.0,1.13506628]
[1746702372712,0.21757275,99728.0,99727.0,0.96616628]
[1746702372930,0.23297275,99728.0,99727.0,0.96616628]
[1746702373089,0.23297275,99728.0,99727.0,0.66966628]
[1746702373631,0.24797275,99728.0,99727.0,0.66966628]
[1746702374247,0.24297275,99728.0,99727.0,0.51476628]
[1746702374591,0.24597275,99728.0,99727.0,0.51476628]
[1746702374776,0.24197275,99728.0,99727.0,0.35296628]
[1746702374984,0.26272628,99728.0,99727.0,0.35396628]
[1746702375225,0.35409903,99728.0,99727.0,0.35396628]
[1746702375527,0.35209903,99728.0,99727.0,0.35296628]
[1746702375730,0.45276595,99728.0,99727.0,0.35296628]
[1746702375933,0.46014124,99728.0,99727.0,0.35296628]
[1746702376287,0.45914124,99728.0,99727.0,0.35296628]
[1746702376671,0.46014124,99728.0,99727.0,0.35496628]
[1746702377638,0.46014124,99728.0,99727.0,0.01496628]
[1746702378015,0.20058973,99706.0,99705.0,0.27390122]
[1746702378221,0.20058973,99706.0,99705.0,2.77770122]
[1746702378385,0.20058973,99706.0,99705.0,1.97351568]
[1746702378583,0.20058973,99706.0,99705.0,1.15671568]
[1746702378992,0.19358973,99706.0,99705.0,0.69491568]
[1746702379194,0.19458973,99706.0,99705.0,0.69591568]
[1746702379391,0.19558973,99706.0,99705.0,0.69591568]
[1746702380240,0.19558973,99706.0,99705.0,0.59771568]
[1746702386118,0.18858973,99706.0,99705.0,0.59771568]
[1746702387506,0.18858973,99706.0,99705.0,0.01391446]
[1746702387703,0.18858973,99706.0,99705.0,4.07871446]
[1746702387962,0.20258973,99706.0,99705.0,2.16801446]
[1746702388190,0.20258973,99706.0,99705.0,0.50521446]
[1746702388365,0.20258973,99706.0,99705.0,0.35391446]
[1746702388880,0.002,99706.0,99705.0,0.35391446]
[1746702389443,0.20258973,99706.0,99705.0,0.35391446]